bitfinex/quotes_ETHUSD_20260228
["timestamp","ask_amount","ask_price","bid_price","bid_amount"]
[1772275145960,3.94677528,1864.7,1864.5,0.0011]
[1772275146964,2.60607705,1864.6,1864.5,0.0011]
[1772275147144,1.38558022,1864.6,1864.5,0.0011]
[1772275147338,1.34069823,1864.7,1864.5,0.0011]
[1772275147339,5.36264973,1864.7,1864.5,1.85240654]
[1772275147557,2.36188743,1864.9,1864.6,1.984]
[1772275147757,2.36188743,1864.9,1864.5,0.0011]
[1772275147758,3.50258566,1864.9,1864.5,0.0011]
[1772275147958,2.36188743,1864.7,1864.6,1.984]
[1772275148360,2.36188743,1864.9,1864.6,1.984]
[1772275148537,8.86523539,1864.8,1864.6,1.984]
[1772275148940,8.86523539,1864.8,1864.7,0.0011]
[1772275149303,0.001,1864.9,1864.7,3.56509852]
[1772275149570,1.34138278,1865.2,1864.8,2.44249345]
[1772275149742,8.86523539,1865.1,1864.8,2.44249345]
[1772275150140,10.20564917,1865.1,1864.8,2.44249345]
[1772275150336,2.64568329,1865.0,1864.7,0.0011]
[1772275150553,2.64568329,1864.9,1864.8,1.983]
[1772275150765,0.83314616,1864.8,1864.7,0.0011]
[1772275151082,9.49838155,1864.8,1864.7,1.9841]
[1772275152938,9.49838155,1864.8,1864.5,2.59788569]
[1772275152939,10.83900789,1864.8,1864.5,2.59788569]
[1772275153147,13.48469118,1864.8,1864.5,0.0011]
[1772275154392,13.48469746,1864.8,1864.6,1.982]
[1772275154546,7.33642851,1864.8,1864.6,1.982]
[1772275156163,8.86523539,1864.7,1864.5,0.0011]
[1772275156385,1.34063262,1864.8,1864.5,0.0011]
[1772275156386,3.98631591,1864.8,1864.6,1.982]
[1772275156549,7.64485641,1864.7,1864.6,1.982]
[1772275158248,8.98555464,1864.7,1864.6,1.982]
[1772275158686,11.63123793,1864.7,1864.6,1.982]
[1772275158975,11.63123793,1864.7,1864.5,0.0011]
[1772275159172,10.2905397,1864.6,1864.4,0.0011]
[1772275159401,7.64485641,1864.6,1864.4,0.0011]
[1772275160193,8.27800256,1864.6,1864.4,0.0011]
[1772275160365,8.27800256,1864.6,1864.5,1.981]
[1772275161184,9.61877269,1864.6,1864.5,1.981]
[1772275162089,9.61877269,1864.6,1864.5,1.9821]
[1772275162783,8.27800256,1864.6,1864.5,1.9821]
[1772275162983,8.22434533,1864.6,1864.5,1.9821]
[1772275163157,8.22434533,1864.6,1864.5,0.0011]
[1772275163475,8.22434533,1864.6,1864.5,1.9821]
[1772275166677,10.99032156,1864.6,1864.5,1.9821]
[1772275166985,10.99032156,1864.6,1864.5,1.981]
[1772275167184,5.42286815,1864.6,1864.5,1.981]
[1772275167484,4.789722,1864.6,1864.5,1.981]
[1772275167984,4.789722,1864.6,1864.5,1.98]
[1772275168358,2.21414614,1864.5,1864.4,0.0011]
[1772275169454,2.21414614,1864.5,1864.4,1.9821]
[1772275170965,1.63905779,1864.5,1864.4,1.9821]
[1772275171163,5.3625268,1864.8,1864.4,1.9821]
[1772275171164,1.34068218,1864.8,1864.4,4.57888569]
[1772275171376,4.789722,1864.7,1864.4,4.57888569]
[1772275172071,7.43540529,1864.7,1864.5,1.982]
[1772275172861,7.43540529,1864.6,1864.4,0.0011]
[1772275173187,7.43540529,1864.6,1864.5,1.982]
[1772275173562,7.43540529,1864.6,1864.5,1.9831]
[1772275173799,7.43640529,1864.6,1864.5,1.9831]
[1772275176886,4.790722,1864.6,1864.5,1.9831]
[1772275177190,3.5702841,1864.6,1864.5,1.9831]
[1772275178492,1.34159662,1864.9,1864.5,4.1174115]
[1772275178493,0.001,1864.9,1864.5,4.1174115]
[1772275178790,2.50751532,1864.7,1864.5,4.1174115]
[1772275178993,2.04744464,1864.7,1864.6,1.07154272]
[1772275179321,0.67063537,1864.7,1864.6,1.07154272]
[1772275180279,2.64668329,1864.9,1864.6,1.07154272]
[1772275181989,0.001,1864.9,1864.6,1.07154272]
[1772275182873,0.001,1864.9,1864.7,1.987]
[1772275183593,0.001,1864.9,1864.7,3.12632672]
[1772275183794,0.001,1864.9,1864.8,1.13932672]
[1772275184091,0.001,1864.9,1864.8,1.987]
[1772275187407,0.001,1864.9,1864.5,0.0011]
[1772275187408,2.60086534,1864.9,1864.5,0.0011]
[1772275187614,2.59986534,1864.8,1864.5,0.0011]
[1772275187904,2.87667446,1864.8,1864.5,0.0011]
[1772275188405,2.59986534,1864.8,1864.5,0.0011]
[1772275188907,2.59986534,1864.8,1864.6,1.986]
[1772275189085,2.59986534,1864.8,1864.5,0.0011]
[1772275189599,2.59986534,1864.6,1864.5,0.0011]
[1772275190509,2.59986534,1864.8,1864.5,1.9861]
[1772275190807,2.59986534,1864.8,1864.5,3.07124695]
[1772275191308,2.59986534,1864.8,1864.5,1.9861]
[1772275192399,3.94049367,1864.8,1864.5,1.9861]
[1772275193216,2.59986534,1864.8,1864.5,1.9861]
[1772275193919,2.59986534,1864.7,1864.6,1.984]
[1772275194081,2.59986534,1864.7,1864.4,0.0011]
[1772275195089,2.59986534,1864.5,1864.4,0.0011]
[1772275195499,2.59986534,1864.5,1864.4,1.9841]
[1772275196409,2.59986534,1864.5,1864.3,0.0011]
[1772275197906,2.59986534,1864.5,1864.4,1.9841]
[1772275199812,2.59986534,1864.7,1864.4,1.9841]
[1772275201513,2.59986534,1864.7,1864.3,0.0011]
[1772275201714,2.59986534,1864.6,1864.3,0.0011]
[1772275201897,2.59986534,1864.4,1864.3,0.0011]
[1772275202992,2.59986534,1864.4,1864.3,1.9831]
[1772275203391,0.001,1864.8,1864.4,1.04593158]
[1772275203605,0.001,1864.8,1864.5,2.16743665]
[1772275203904,0.001,1864.8,1864.6,1.04593158]
[1772275204100,0.001,1864.8,1864.7,1.12150507]
[1772275204494,0.001,1864.8,1864.7,2.16161562]
[1772275204720,0.001,1864.8,1864.7,4.14361562]
[1772275207294,0.001,1864.8,1864.7,3.10350507]
[1772275207501,0.001,1864.8,1864.7,1.982]
[1772275207909,0.001,1864.8,1864.7,2.99946426]
[1772275208229,2.59986534,1865.1,1864.7,3.10750507]
[1772275208823,2.59986534,1865.1,1864.7,1.986]
[1772275209429,2.59986534,1865.1,1864.7,2.73370071]
[1772275209999,0.27680912,1865.6,1865.0,1.12116596]
[1772275210000,2.59986534,1865.6,1865.0,1.12116596]
[1772275210195,2.60086534,1865.8,1865.2,1.08181846]
[1772275210427,2.60492891,1865.5,1865.1,1.00142861]
[1772275211696,2.60492891,1865.5,1865.2,1.986]
[1772275212033,2.60492891,1865.2,1865.1,1.00142861]
[1772275213507,2.60492891,1865.2,1865.1,2.98642861]
[1772275217846,2.60492891,1865.2,1865.1,2.98542861]
[1772275218139,0.16357121,1865.1,1864.8,1.81796299]
[1772275219612,0.16357121,1865.1,1864.9,1.985]
[1772275220009,2.76850012,1865.1,1864.9,1.985]
[1772275220213,0.16357121,1865.1,1864.9,1.985]
[1772275220655,0.16357121,1865.1,1865.0,1.06186778]
[1772275220817,0.16357121,1865.1,1865.0,1.80956849]
[1772275221415,1.34026702,1865.3,1865.0,1.80956849]
[1772275221416,3.94519593,1865.3,1865.0,0.74770071]
[1772275221711,2.60492891,1865.1,1864.6,1.10942812]
[1772275221916,2.60492891,1865.1,1864.7,1.987]
[1772275222116,2.60592891,1865.1,1864.7,1.987]
[1772275222547,2.60592891,1865.1,1864.9,0.0011]
[1772275222849,2.60592891,1865.1,1864.6,1.85712883]
[1772275222850,2.60592891,1865.1,1865.0,1.986]
[1772275223019,2.60592891,1865.1,1865.0,1.842]
[1772275223219,2.60492891,1864.9,1864.6,1.10942812]
[1772275224540,2.60492891,1864.9,1864.7,1.985]
[1772275225121,2.60492891,1864.7,1864.6,1.10942812]
[1772275226762,2.60492891,1864.7,1864.6,3.09442812]
[1772275228572,3.94562714,1864.7,1864.6,3.09442812]
[1772275228749,3.94562714,1864.7,1864.6,1.10942812]
[1772275228947,3.94562714,1864.7,1864.6,3.09442812]
[1772275229354,3.94562714,1864.7,1864.6,1.10942812]
[1772275229677,3.94562714,1864.7,1864.6,3.09442812]
[1772275229971,2.60492891,1864.7,1864.6,3.09442812]
[1772275231076,2.60492891,1864.7,1864.4,0.74880071]
[1772275231235,2.60492891,1864.5,1864.4,0.0011]
[1772275231655,2.60492891,1864.6,1864.4,0.74880071]
[1772275231888,5.36198597,1865.0,1864.4,1.73437483]
[1772275231889,2.60492891,1864.8,1864.4,1.73437483]
[1772275232547,2.60492891,1864.8,1864.5,1.985]
[1772275232773,2.60492891,1864.8,1864.6,1.985]
[1772275232976,2.60492891,1864.8,1864.4,0.0011]
[1772275233265,2.60492891,1864.6,1864.4,0.0011]
[1772275234474,2.60492891,1864.6,1864.5,1.9861]
[1772275238746,2.60492891,1864.7,1864.5,1.9861]
[1772275239467,2.60492891,1865.0,1864.6,1.76607502]
[1772275239769,0.001,1865.1,1864.8,1.76607502]
[1772275239940,0.001,1865.1,1864.9,1.986]
[1772275241467,2.31850113,1865.1,1864.9,1.986]
[1772275242839,0.001,1865.1,1864.9,4.07424739]
[1772275243046,2.40079398,1865.4,1865.0,1.74675111]
[1772275243244,2.40079398,1865.4,1865.3,0.74770071]
[1772275243462,2.40079398,1865.4,1865.3,2.73570071]
[1772275243661,2.40079398,1865.4,1865.3,1.988]
[1772275246379,2.40079398,1865.0,1864.5,1.34192636]
[1772275246588,2.40079398,1865.0,1864.5,0.0011]
[1772275246788,2.40079398,1865.0,1864.6,1.988]
[1772275246789,2.40079398,1864.9,1864.6,1.988]
[1772275247442,2.40079398,1864.9,1864.7,1.987]
[1772275248086,2.40079398,1864.9,1864.5,0.0011]
[1772275248375,1.34062634,1864.8,1864.5,0.0011]
[1772275248577,2.40079398,1864.7,1864.5,0.0011]
[1772275248952,3.74140258,1864.9,1864.5,0.0011]
[1772275249161,2.40079398,1864.8,1864.5,0.0011]
[1772275249382,2.40079398,1864.8,1864.6,1.986]
[1772275250281,3.74144358,1864.8,1864.6,1.986]
[1772275253405,2.40079398,1864.8,1864.5,1.34193394]
[1772275253594,2.40079398,1864.8,1864.7,1.986]
[1772275256504,2.40079398,1864.8,1864.5,1.29193924]
[1772275257008,2.40079398,1864.9,1864.5,2.18907929]
[1772275257705,2.40079398,1864.9,1864.6,1.987]
[1772275258117,2.40079398,1864.9,1864.7,0.0011]
[1772275258881,0.001,1865.0,1864.7,0.88534064]
[1772275260305,0.001,1865.0,1864.7,2.22597471]
[1772275260915,0.001,1865.0,1864.8,0.86993126]
[1772275265106,0.001,1865.0,1864.8,2.2105541]
[1772275265295,0.001,1865.0,1864.9,0.83438684]
[1772275265618,2.40079398,1865.4,1865.0,0.83338684]
[1772275265828,3.74100068,1865.4,1865.1,2.82538684]
[1772275266206,2.40079398,1865.4,1865.1,2.82538684]
[1772275266404,3.74099568,1865.4,1865.1,2.82538684]
[1772275266628,2.40079398,1865.4,1865.1,2.82538684]
[1772275266938,3.74097284,1865.5,1865.1,2.82538684]
[1772275267921,2.40079398,1865.4,1865.1,2.82538684]
[1772275269217,3.24136114,1865.4,1865.1,2.82538684]
[1772275270925,0.001,1865.3,1865.1,2.82538684]
[1772275272735,2.36425902,1865.3,1865.1,1.992]
[1772275273033,2.36325902,1865.2,1865.1,1.992]
[1772275273843,2.36325902,1865.2,1865.1,1.993]
[1772275274210,3.70452913,1865.3,1865.1,1.993]
[1772275274946,2.36325902,1865.2,1864.8,1.284637]
[1772275275157,2.36325902,1865.2,1864.9,1.993]
[1772275275158,3.70366972,1865.1,1864.9,1.993]
[1772275275321,3.70366972,1865.1,1865.0,1.992]
[1772275276035,2.36325902,1865.0,1864.7,0.0011]
[1772275276351,2.36325902,1865.0,1864.8,1.992]
[1772275277021,2.36008958,1865.0,1864.8,1.992]
[1772275277226,2.36008958,1865.0,1864.7,1.26796948]
[1772275277432,1.3404107,1865.1,1864.8,3.25886948]
[1772275281732,1.3404107,1865.1,1864.9,1.992]
[1772275281932,3.70365394,1865.2,1864.9,1.992]
[1772275282126,3.70365394,1865.2,1864.9,3.22433038]
[1772275282333,3.70360265,1865.2,1864.9,1.992]
[1772275282845,2.36325902,1865.1,1864.7,0.0011]
[1772275283045,2.36425902,1865.0,1864.8,1.992]
[1772275283663,2.36425902,1865.0,1864.7,1.2265437]
[1772275283664,3.70475829,1865.0,1864.9,1.992]
[1772275283846,2.36425902,1865.0,1864.9,1.992]
[1772275284052,3.70474319,1865.0,1864.9,1.991]
[1772275284734,2.36425902,1865.0,1864.9,1.991]
[1772275285950,3.70474159,1865.0,1864.7,1.2265437]
[1772275287260,3.70474159,1865.0,1864.8,1.99]
[1772275287553,3.70474159,1865.0,1864.9,1.99]
[1772275289053,2.40732042,1865.2,1864.9,1.99]
[1772275289255,2.40732042,1865.2,1864.7,0.0011]
[1772275289457,2.40732042,1865.0,1864.7,0.0011]
[1772275289841,2.40732042,1864.9,1864.7,0.0011]
[1772275290038,2.40732042,1864.8,1864.7,0.0011]
[1772275290435,3.5286131,1864.8,1864.7,1.5481]
[1772275290636,2.40732042,1864.7,1864.5,0.0011]
[1772275291240,2.40732042,1864.5,1864.3,0.0011]
[1772275292261,2.40732042,1864.5,1864.4,1.86]
[1772275293161,2.40732042,1864.4,1864.3,1.986]
[1772275293965,2.40732042,1864.4,1864.1,0.85392926]
[1772275295043,2.40732042,1864.3,1863.7,1.34137801]
[1772275295268,2.40732042,1864.3,1863.6,5.43247903]
[1772275295269,2.40732042,1864.3,1863.8,0.0011]
[1772275295433,2.40732042,1864.3,1863.7,0.0011]
[1772275295639,2.40732042,1864.3,1863.8,1.985]
[1772275296067,2.40732042,1864.3,1863.8,1.99007328]
[1772275296801,2.40732042,1864.3,1863.9,1.9851]
[1772275296954,2.40732042,1864.3,1864.0,1.984]
[1772275297152,2.40732042,1864.2,1864.0,1.984]
[1772275298412,2.40732042,1864.2,1863.9,0.0011]
[1772275298697,2.40732042,1864.2,1864.0,1.983]
[1772275298909,2.34732042,1864.2,1864.0,1.983]
[1772275299106,2.34732042,1864.2,1863.6,0.0011]
[1772275299107,2.37732042,1864.1,1863.6,0.0011]
[1772275299410,2.37732042,1864.1,1863.7,0.0011]
[1772275299568,2.37732042,1864.0,1863.7,0.0011]
[1772275300656,2.37732042,1864.0,1863.8,1.982]
[1772275301654,2.37732042,1864.0,1863.7,0.0011]
[1772275301858,2.37732042,1864.0,1863.8,1.982]
[1772275302253,2.37732042,1863.9,1863.8,1.982]
[1772275303873,2.37732042,1863.9,1863.7,0.0011]
[1772275304079,2.37732042,1863.9,1863.8,1.982]
[1772275304402,2.37732042,1864.2,1863.8,1.99486323]
[1772275305200,2.37732042,1864.2,1863.8,1.982]
[1772275305901,2.37732042,1864.1,1863.8,1.982]
[1772275306070,2.37732042,1864.1,1863.9,1.982]
[1772275306271,2.37732042,1864.1,1863.5,0.0011]
[1772275306272,2.37732042,1863.7,1863.5,0.0011]
[1772275306501,2.37732042,1863.6,1863.5,0.0011]
[1772275308200,2.37732042,1863.6,1863.5,1.9831]
[1772275308496,2.37732042,1863.8,1863.5,1.9831]
[1772275308700,2.37732042,1863.8,1863.6,1.982]
[1772275309099,2.37732042,1863.8,1863.5,0.0011]
[1772275309894,2.37732042,1863.6,1863.5,0.0011]
[1772275310283,2.37732042,1863.6,1863.5,0.8701]
[1772275312272,2.37732042,1863.6,1863.5,0.0011]
[1772275312512,2.37732042,1863.6,1863.5,0.8701]
[1772275314381,2.37732042,1863.6,1863.5,0.8712]
[1772275315983,2.37732042,1863.6,1863.5,1.9802]
[1772275320290,2.37732042,1863.5,1862.5,5.36890925]
[1772275320512,2.37832042,1863.5,1862.7,1.978]
[1772275320823,2.37732042,1863.3,1862.7,1.978]
[1772275321124,2.37732042,1863.1,1862.7,1.978]
[1772275321415,2.37732042,1863.1,1862.7,3.32013711]
[1772275321988,2.37732042,1863.1,1862.7,1.978]
[1772275323420,2.37732042,1863.1,1862.7,3.32013509]
[1772275323594,1.34175574,1863.3,1862.7,3.32013509]
[1772275323595,2.37732042,1863.3,1862.7,3.32013509]
[1772275323794,1.87768806,1863.3,1862.8,1.978]
[1772275325033,5.3672669,1863.5,1862.8,1.978]
[1772275325034,2.30191018,1863.5,1862.9,0.38020637]
[1772275325394,0.001,1863.5,1863.1,0.38823846]
[1772275325819,3.48234993,1863.7,1863.1,0.38823846]
[1772275326220,2.14093143,1863.7,1863.1,0.38823846]
[1772275326400,2.30091018,1863.9,1863.1,0.38823846]
[1772275327201,2.30091018,1863.9,1863.2,2.51788708]
[1772275327406,2.30091018,1863.8,1863.4,1.34163357]
[1772275328010,2.30091018,1864.0,1863.4,1.88152065]
[1772275330136,2.30091018,1863.9,1863.4,1.34163357]
[1772275330338,2.30091018,1863.9,1863.4,1.86206847]
[1772275332437,2.30191018,1863.9,1863.4,1.86206847]
[1772275333225,2.30191018,1863.9,1863.5,0.50127709]
[1772275333429,2.30191018,1863.9,1863.6,2.48027709]
[1772275333430,0.001,1863.9,1863.6,2.48027709]
[1772275334015,2.14793668,1863.9,1863.6,1.979]
[1772275334229,2.14793668,1863.9,1863.6,3.32043778]
[1772275335102,2.14793668,1863.9,1863.6,1.979]
[1772275335306,2.14793668,1863.9,1863.6,3.32047706]
[1772275335307,2.14693668,1863.8,1863.6,3.32047706]
[1772275335535,0.001,1863.9,1863.6,3.80892676]
[1772275335734,2.14793668,1863.9,1863.6,3.32047706]
[1772275337230,2.14793668,1863.9,1863.5,1.82998141]
[1772275337434,2.14793668,1863.9,1863.6,1.98]
[1772275340818,2.14793668,1863.9,1863.6,3.32147963]
[1772275341745,2.14793668,1863.9,1863.5,0.4884497]
[1772275342041,2.14793668,1863.9,1863.6,1.983]
[1772275343017,2.14793668,1863.9,1863.7,1.34141761]
[1772275343858,2.14793668,1863.9,1863.6,3.32443136]
[1772275344341,0.001,1863.9,1863.7,0.43137245]
[1772275344939,0.001,1863.8,1863.7,0.43137245]
[1772275348056,2.14693668,1864.2,1863.9,0.41157977]
[1772275348348,2.14693668,1864.2,1864.0,1.986]
[1772275348932,0.74874443,1864.1,1864.0,1.986]
[1772275349247,0.74874443,1864.1,1863.7,1.34141761]
[1772275349645,3.00254918,1864.1,1863.6,0.0011]
[1772275350245,3.00254918,1864.1,1863.7,0.03954046]
[1772275350448,3.00254918,1864.1,1863.8,0.03954046]
[1772275352957,5.36402071,1864.3,1863.9,0.02685928]
[1772275352958,0.74874443,1864.3,1863.9,0.02685928]
[1772275353254,2.25380475,1864.2,1863.9,0.02685928]
[1772275354025,2.25380475,1864.2,1863.8,0.02053846]
[1772275354362,3.59486857,1864.2,1863.8,0.02053846]
[1772275355061,3.59486857,1864.2,1863.8,1.36187752]
[1772275355856,3.59486496,1864.2,1863.8,1.36187752]
[1772275356063,3.59486496,1864.2,1863.9,0.0079362]
[1772275356254,1.34099007,1864.3,1863.9,0.00165473]
[1772275356559,3.59479482,1864.3,1863.9,0.00165473]
[1772275356937,2.25380475,1864.2,1863.9,0.00165473]
[1772275357136,2.25380475,1864.2,1863.9,0.00275473]
[1772275357360,0.001,1864.1,1864.0,1.984]
[1772275357533,2.25480475,1864.1,1864.0,1.984]
[1772275359664,0.001,1864.1,1864.0,1.984]
[1772275360349,0.001,1864.1,1863.6,0.0011]
[1772275360350,2.25380475,1864.0,1863.6,0.0011]
[1772275360662,2.25380475,1863.8,1863.7,1.864]
[1772275361036,2.25380475,1863.8,1863.6,0.0011]
[1772275361237,2.25380475,1863.8,1863.7,1.984]
[1772275362542,2.25380475,1863.8,1863.7,1.85010708]
[1772275363265,3.59515038,1863.8,1863.7,1.85010708]
[1772275365462,2.25380475,1863.8,1863.6,0.0011]
[1772275365659,2.25380475,1863.8,1863.7,1.982]
[1772275366084,2.25380475,1863.7,1863.6,0.0011]
[1772275366691,2.25380475,1863.7,1863.3,0.0011]
[1772275366692,2.25270475,1863.6,1863.3,0.0011]
[1772275367486,2.25270475,1863.6,1863.4,1.981]
[1772275369362,2.25270475,1863.6,1863.4,1.9821]
[1772275370191,3.59419696,1863.6,1863.4,1.9821]
[1772275371356,2.25270475,1863.6,1863.4,1.9821]
[1772275374704,2.25270475,1863.5,1863.4,0.0011]
[1772275374866,2.25270475,1863.5,1863.4,1.9821]
[1772275375962,2.25270475,1863.5,1863.4,0.0011]
[1772275376159,2.25270475,1863.5,1863.4,1.9811]
[1772275379270,2.25270475,1863.7,1863.4,1.9811]
[1772275379484,2.25270475,1863.7,1863.4,3.32272839]
[1772275379680,3.59405497,1863.8,1863.4,3.32272839]
[1772275380070,2.25270475,1863.8,1863.4,3.32272839]
[1772275382071,0.001,1863.5,1863.4,3.32272839]
[1772275382499,2.25270475,1863.9,1863.4,4.07147282]
[1772275385379,2.25370475,1864.0,1863.4,4.07147282]
[1772275392326,2.25370475,1864.0,1863.4,1.34272839]
[1772275392489,2.25270475,1863.8,1863.5,1.987]
[1772275393717,2.25270475,1863.8,1863.5,1.9881]
[1772275395120,2.56730717,1863.8,1863.5,1.9881]
[1772275395716,2.25270475,1863.8,1863.5,3.3296503]
[1772275396692,2.25370475,1863.9,1863.5,3.3296503]
[1772275399021,1.34227947,1863.9,1863.6,1.989]
[1772275399221,2.25270475,1863.8,1863.7,0.869]
[1772275399590,2.25270475,1863.8,1863.7,1.989]
[1772275399988,2.25270475,1863.8,1863.5,0.0011]
[1772275400227,2.25270475,1863.8,1863.6,1.989]
[1772275400523,2.25270475,1863.8,1863.5,0.0011]
[1772275400724,2.56730717,1863.8,1863.7,1.989]
[1772275401913,3.70320338,1863.8,1863.7,1.989]
[1772275404534,3.38860096,1863.8,1863.7,1.989]
[1772275406116,2.04724074,1863.8,1863.7,1.989]
[1772275406318,3.38958637,1863.8,1863.7,1.989]
[1772275408842,2.04824074,1863.8,1863.7,1.989]
[1772275409214,2.04824074,1863.8,1863.7,5.06879621]
[1772275409215,0.001,1863.8,1863.7,5.06879621]
[1772275409535,0.001,1863.8,1863.7,1.989]
[1772275409937,0.001,1863.8,1863.7,3.7273786]
[1772275410137,0.001,1863.8,1863.7,1.989]
[1772275411725,2.04824074,1863.8,1863.7,1.99]
[1772275412444,0.001,1863.8,1863.7,1.99]
[1772275412645,2.04824074,1863.8,1863.7,1.99]
[1772275415155,2.04824074,1863.8,1863.6,0.0011]
[1772275415457,2.04824074,1863.8,1863.7,1.991]
[1772275416838,3.38958637,1863.8,1863.7,1.991]
[1772275417041,2.04824074,1863.8,1863.7,1.991]
[1772275417630,0.001,1864.0,1863.8,1.6915875]
[1772275418955,0.001,1864.0,1863.8,1.6926875]
[1772275419922,0.001,1864.0,1863.9,1.68031799]
[1772275421952,0.001,1864.0,1863.9,3.02159166]
[1772275422156,0.001,1864.0,1863.9,3.67431799]
[1772275422328,0.001,1864.0,1863.9,5.01659166]
[1772275424868,0.001,1864.0,1863.9,5.01959166]
[1772275425272,0.001,1864.0,1863.9,3.02159166]
[1772275425450,0.001,1864.0,1863.9,5.01959166]
[1772275425957,0.001,1864.0,1863.9,5.02059166]
[1772275426345,0.001,1864.0,1863.9,5.02159166]
[1772275426749,0.001,1864.0,1863.9,3.02159166]
[1772275427047,0.001,1864.0,1863.9,5.02159166]
[1772275427363,0.001,1864.0,1863.9,5.02259166]
[1772275427874,0.001,1864.4,1863.9,4.46560557]
[1772275428173,1.97277828,1864.9,1864.6,2.75792418]
[1772275428341,0.25560242,1864.8,1864.7,2.002]
[1772275428742,0.001,1864.9,1864.8,1.34062634]
[1772275428937,0.25660242,1864.9,1864.8,1.34062634]
[1772275429249,1.97177828,1865.1,1864.8,2.96966534]
[1772275429775,1.97277828,1865.3,1864.9,1.6327291]
[1772275429935,1.97277828,1865.3,1865.0,3.00481392]
[1772275430256,1.97277828,1865.3,1865.0,2.92096548]
[1772275431262,1.97277828,1865.3,1865.1,1.3404107]
[1772275433602,1.97177828,1865.1,1864.2,1.34101281]
[1772275433875,1.97177828,1864.6,1864.3,4.2396662]
[1772275434044,0.41431042,1864.5,1864.3,3.54325766]
[1772275434771,0.41431042,1864.5,1864.3,4.88423139]
[1772275434936,0.41431042,1864.5,1864.3,3.54325766]
[1772275436546,1.97177828,1864.5,1864.3,3.54325766]
[1772275438353,1.97177828,1864.5,1864.3,1.53925766]
[1772275438565,1.97177828,1864.5,1864.4,2.006]
[1772275442881,1.97177828,1864.6,1864.4,2.006]
[1772275445689,1.97177828,1864.8,1864.4,4.93916664]
[1772275446790,1.97177828,1864.8,1864.5,2.01]
[1772275446979,2.3860887,1864.8,1864.5,2.01]
[1772275447883,1.97177828,1864.7,1864.5,2.01]
[1772275449763,1.97177828,1864.7,1864.0,1.57148528]
[1772275449764,1.97177828,1864.5,1864.0,1.57148528]
[1772275449969,1.97177828,1864.3,1864.1,2.011]
[1772275450162,1.97177828,1864.3,1864.0,0.0011]
[1772275450399,2.3860887,1864.3,1864.0,0.0011]
[1772275450569,12.88901485,1864.6,1864.0,0.0011]
[1772275450570,1.98979494,1864.5,1864.0,3.25151114]
[1772275451293,1.98979494,1864.5,1864.1,3.91921464]
[1772275451789,1.98979494,1864.5,1864.1,5.26032795]
[1772275454167,1.98979494,1864.4,1864.0,0.0011]
[1772275454676,1.75519729,1864.5,1864.1,0.869]
[1772275454677,1.98979494,1864.2,1864.1,0.869]
[1772275456796,1.99079494,1864.4,1864.1,2.21012639]
[1772275456969,0.001,1864.4,1864.1,2.77821464]
[1772275458086,0.41431042,1864.3,1864.1,0.869]
[1772275458397,3.74509758,1864.3,1864.2,2.011]
[1772275458894,2.40410536,1864.3,1864.2,2.011]
[1772275459100,1.98979494,1864.3,1864.2,2.011]
[1772275459889,3.33078083,1864.3,1864.2,2.011]
[1772275460086,3.33078083,1864.3,1864.0,0.0011]
[1772275460797,1.98979494,1864.2,1864.0,0.0011]
[1772275461394,1.98979494,1864.2,1864.1,2.011]
[1772275461592,2.40410536,1864.2,1864.1,2.011]
[1772275462389,1.34098589,1864.3,1864.1,2.011]
[1772275462590,3.33078083,1864.3,1864.1,2.011]
[1772275465325,3.74509125,1864.3,1864.1,2.011]
[1772275465525,0.41431042,1864.2,1864.1,2.011]
[1772275465997,2.40410536,1864.2,1864.1,2.011]
[1772275466397,0.001,1864.4,1864.1,3.92021464]
[1772275466819,1.99079494,1864.4,1864.1,5.26130802]
[1772275467016,0.001,1864.4,1864.2,0.0011]
[1772275467419,0.001,1864.3,1864.2,0.0011]
[1772275470626,0.001,1864.3,1864.2,1.91031464]
[1772275471210,0.001,1864.3,1864.0,0.0011]
[1772275471211,1.98979494,1864.2,1864.0,0.0011]
[1772275471396,4.49386948,1864.1,1864.0,0.0011]
[1772275471599,3.74523512,1864.1,1864.0,0.0011]
[1772275472002,3.74523512,1864.1,1864.0,2.0141]
[1772275472298,3.74523512,1864.1,1863.9,0.0011]
[1772275473422,3.74523512,1864.1,1864.0,2.012]
[1772275473931,3.74523512,1864.1,1863.9,0.0011]
[1772275474111,2.40410536,1864.1,1863.9,0.0011]
[1772275474310,1.98979494,1864.1,1863.9,0.0011]
[1772275474928,4.07952476,1864.2,1863.9,0.0011]
[1772275475135,4.07952476,1864.2,1864.0,2.012]
[1772275476439,3.3318373,1864.3,1864.0,2.012]
[1772275476641,3.3318373,1864.3,1864.0,3.92121464]
[1772275478167,1.98979494,1864.1,1863.7,0.0011]
[1772275478315,1.98979494,1863.7,1863.6,0.0011]
[1772275478520,2.40410536,1863.7,1863.6,0.0011]
[1772275479243,2.40410536,1863.7,1863.6,2.0121]
[1772275479772,3.74552297,1863.7,1863.6,2.0121]
[1772275479923,3.74552297,1863.7,1863.6,0.0011]
[1772275480117,3.74552297,1863.7,1863.5,0.6193953]
[1772275480317,0.41431042,1863.6,1863.5,0.6193953]
[1772275480738,1.98979494,1863.7,1863.5,0.6193953]
[1772275480915,2.40410536,1863.7,1863.5,0.6193953]
[1772275481123,0.41431042,1863.6,1863.5,0.6193953]
[1772275481344,0.41431042,1863.6,1863.5,2.6303953]
[1772275483234,1.94465841,1864.0,1863.6,1.91203462]
[1772275487122,1.34127367,1863.9,1863.6,1.91203462]
[1772275487955,3.28593208,1863.9,1863.6,1.91203462]
[1772275490533,1.34127367,1863.9,1863.6,1.91203462]
[1772275490732,3.28593208,1863.9,1863.6,1.91203462]
[1772275492463,1.94465841,1863.9,1863.6,1.91203462]
[1772275492644,1.94465841,1863.9,1863.7,0.0011]
[1772275492835,0.001,1863.8,1863.7,0.0011]
[1772275494334,0.001,1863.8,1863.7,1.91313462]
[1772275494535,0.001,1863.8,1863.7,0.0011]
[1772275494790,0.001,1863.8,1863.7,1.91313462]
[1772275495265,0.001,1863.8,1863.7,2.0171]
[1772275496837,0.001,1863.8,1863.7,3.92913462]
[1772275498255,1.94565841,1863.8,1863.7,0.0011]
[1772275498449,2.32544296,1863.8,1863.4,0.0011]